bitfinex-derivatives/quotes_SOLF0:USTF0_20250312
["timestamp","ask_amount","ask_price","bid_price","bid_amount"]
[1741823480300,4.5765,126.49,126.46,7.9087]
[1741823480697,4.63606352,126.49,126.44,0.05358789]
[1741823480894,4.63606352,126.49,126.46,7.9086]
[1741823482099,4.63606352,126.49,126.44,0.05358789]
[1741823482303,4.63606352,126.49,126.45,7.9093]
[1741823482895,4.63606352,126.49,126.44,7.96358789]
[1741823483602,7.9082,126.48,126.44,7.96358789]
[1741823484604,2.3197,126.48,126.44,0.05358789]
[1741823484801,2.3197,126.48,126.45,7.9096]
[1741823484997,2.3197,126.48,126.44,0.05358789]
[1741823485498,2.3197,126.48,126.47,7.9084]
[1741823485703,0.05956352,126.49,126.45,47.45627706]
[1741823486606,0.05956352,126.49,126.45,29.22]
[1741823486902,0.05956352,126.49,126.44,0.05358789]
[1741823487306,7.9086,126.47,126.44,7.96358789]
[1741823487803,7.908,126.48,126.45,7.9096]
[1741823488195,0.05956352,126.49,126.44,0.05358789]
[1741823488600,7.9084,126.47,126.44,7.96348789]
[1741823488800,0.05956352,126.49,126.44,0.05358789]
[1741823489098,7.908,126.48,126.45,7.9093]
[1741823490098,7.96706352,126.49,126.46,7.9089]
[1741823490304,0.05956352,126.49,126.44,0.05358789]
[1741823490604,7.96676352,126.49,126.46,7.9088]
[1741823490999,0.05956352,126.49,126.44,0.05358789]
[1741823491203,7.9078,126.48,126.45,7.9094]
[1741823491909,0.05956352,126.49,126.44,0.05358789]
[1741823492110,7.96706352,126.49,126.44,0.05358789]
[1741823493103,7.96706352,126.49,126.46,7.9087]
[1741823493304,0.05956352,126.49,126.44,0.05358789]
[1741823493711,0.05956352,126.49,126.46,7.9087]
[1741823495108,7.96706352,126.49,126.46,7.9087]
[1741823495308,0.05956352,126.49,126.47,7.9083]
[1741823495508,0.05956352,126.49,126.43,47.45627706]
[1741823495706,7.96696352,126.49,126.47,0.05743298]
[1741823496109,0.05956352,126.49,126.47,0.05743298]
[1741823496611,7.9078,126.48,126.47,0.05743298]
[1741823496811,0.05956352,126.49,126.44,7.9102]
[1741823497209,7.9086,126.47,126.44,7.9102]
[1741823497612,7.9086,126.47,126.45,7.9095]
[1741823497907,7.9086,126.47,126.45,7.96695786]
[1741823498110,7.96844201,126.47,126.45,7.96695786]
[1741823498715,0.05984201,126.47,126.46,7.909]
[1741823510913,0.05984201,126.47,126.46,37.129]
[1741823511221,4.5009,126.52,126.49,7.9067]
[1741823511523,12.4065,126.52,126.49,7.9067]
[1741823512119,4.5009,126.52,126.46,29.22]
[1741823512420,4.55794953,126.52,126.49,0.0542305]
[1741823512815,12.46374953,126.52,126.49,7.9612305]
[1741823515727,4.55794953,126.52,126.49,7.9612305]
[1741823515917,7.906,126.51,126.49,7.9612305]
[1741823516224,4.55794953,126.52,126.49,7.9612305]
[1741823516419,12.46354953,126.52,126.49,7.9612305]
[1741823517922,7.906,126.51,126.49,0.0542305]
[1741823518626,4.55794953,126.52,126.49,0.0542305]
[1741823519323,12.46354953,126.52,126.49,7.9611305]
[1741823521126,4.55794953,126.52,126.49,0.0542305]
[1741823521327,7.9061,126.51,126.49,0.0542305]
[1741823521930,7.9065,126.5,126.49,0.0542305]
[1741823522123,4.55794953,126.52,126.49,0.0542305]
[1741823522523,4.55794953,126.52,126.49,7.9613305]
[1741823523031,12.46354953,126.52,126.49,7.9613305]
[1741823523532,4.55794953,126.52,126.49,7.9613305]
[1741823523730,7.9059,126.51,126.49,0.0542305]
[1741823524432,12.46344953,126.52,126.49,7.9613305]
[1741823524930,4.55794953,126.52,126.49,7.9613305]
[1741823525131,7.9059,126.51,126.49,7.9613305]
[1741823525326,4.55794953,126.52,126.49,7.9613305]
[1741823526038,7.906,126.51,126.49,0.0542305]
[1741823526335,4.55794953,126.52,126.49,0.0542305]
[1741823526533,7.9065,126.5,126.49,0.0542305]
[1741823526732,4.55794953,126.52,126.49,0.0542305]
[1741823527031,12.46334953,126.52,126.49,0.0542305]
[1741823527230,12.46334953,126.52,126.49,7.9610305]
[1741823527530,4.55794953,126.52,126.49,0.0542305]
[1741823527722,7.9059,126.51,126.49,0.0542305]
[1741823528633,7.9065,126.5,126.49,0.0542305]
[1741823530028,16.22252481,126.52,126.47,11.66457528]
[1741823530334,16.22252481,126.52,126.45,11.66457528]
[1741823530532,16.16547528,126.52,126.45,11.66457528]
[1741823531333,0.0533179,126.5,126.47,11.72128338]
[1741823532129,7.9598179,126.5,126.47,19.62948338]
[1741823532428,7.9598179,126.5,126.47,11.72128338]
[1741823532832,7.9598179,126.5,126.47,19.62938338]
[1741823533332,7.9072,126.49,126.47,19.62938338]
[1741823534840,0.0533179,126.5,126.47,19.62938338]
[1741823535031,7.9601179,126.5,126.47,19.62938338]
[1741823535231,7.9601179,126.5,126.47,48.82938338]
[1741823535932,0.0533179,126.5,126.48,7.9077]
[1741823538835,0.0533179,126.5,126.49,7.9071]
[1741823539829,0.0533179,126.5,126.48,7.9075]
[1741823540233,0.0533179,126.5,126.47,40.92128338]
[1741823540938,0.0533179,126.5,126.49,7.9071]
[1741823542837,0.0533179,126.5,126.47,40.92128338]
[1741823543040,7.9602179,126.5,126.47,40.92128338]
[1741823543240,0.0533179,126.5,126.47,40.92128338]
[1741823543737,0.0533179,126.5,126.47,11.72128338]
[1741823544039,7.9601179,126.5,126.47,19.62938338]
[1741823545947,0.0533179,126.5,126.47,11.72128338]
[1741823546644,0.0533179,126.5,126.47,19.62918338]
[1741823547557,7.9601179,126.5,126.47,19.62918338]
[1741823547735,7.9601179,126.5,126.47,11.72128338]
[1741823547941,7.9074,126.49,126.47,11.72128338]
[1741823548241,0.0533179,126.5,126.47,11.72128338]
[1741823550342,0.0533179,126.5,126.49,7.9071]
[1741823554847,0.0533179,126.5,126.49,19.57167528]
[1741823555151,10.86088355,126.57,126.49,11.66457528]
[1741823555152,7.9037,126.55,126.49,11.66457528]
[1741823555349,45.35807528,126.56,126.49,11.66457528]
[1741823555750,11.66457528,126.54,126.49,11.66457528]
[1741823556050,0.06057888,126.53,126.5,0.05494251]
[1741823556250,7.96567888,126.53,126.5,0.05494251]
[1741823556952,0.06057888,126.53,126.5,0.05494251]
[1741823557451,0.06057888,126.53,126.51,11.66457528]
[1741823557652,0.06057888,126.53,126.52,7.9053]
[1741823558448,0.06057888,126.53,126.51,11.66457528]
[1741823558648,0.06057888,126.53,126.51,19.57037528]
[1741823559255,0.06057888,126.53,126.52,7.9053]
[1741823564160,2.1831,126.58,126.52,29.18]
[1741823564453,2.1831,126.58,126.54,11.66457528]
[1741823564657,10.085,126.58,126.54,11.66457528]
[1741823564856,10.085,126.58,126.54,19.56807528]
[1741823565252,10.085,126.58,126.54,11.66457528]
[1741823565557,10.085,126.58,126.55,7.95628992]
[1741823565753,7.9019,126.58,126.55,7.95628992]
[1741823566261,7.9012,126.59,126.56,7.9026]
[1741823567262,7.9012,126.59,126.55,7.95598992]
[1741823567458,7.9017,126.58,126.55,7.95598992]
[1741823570762,24.19477528,126.6,126.57,7.9018]
[1741823571862,4.6296,126.6,126.58,7.9012]
[1741823572063,4.6296,126.6,126.56,11.66457528]
[1741823572265,4.6296,126.6,126.58,0.05550727]
[1741823572464,11.66457528,126.62,126.58,0.05550727]
[1741823572868,7.9,126.61,126.58,0.05550727]
[1741823573765,11.66457528,126.62,126.58,0.05550727]
[1741823573966,47.69657528,126.64,126.58,11.72008255]
[1741823574170,18.51657528,126.64,126.58,11.72008255]
[1741823574470,7.8987,126.63,126.59,7.9006]
[1741823575264,18.51657528,126.64,126.59,7.9006]
[1741823575465,7.8991,126.62,126.59,7.9006]
[1741823575868,7.8987,126.63,126.59,7.9006]
[1741823576672,18.51657528,126.64,126.59,7.9006]
[1741823576872,7.8991,126.62,126.59,7.9006]
[1741823577472,11.66457528,126.62,126.58,0.05550727]
[1741823577876,7.9008,126.6,126.58,0.05550727]
[1741823578773,7.9009,126.59,126.58,0.05550727]
[1741823579175,29.16,126.62,126.58,0.05550727]
[1741823579377,11.66457528,126.61,126.58,0.05550727]
[1741823579576,7.9007,126.6,126.58,0.05550727]
[1741823579874,11.66457528,126.61,126.58,0.05550727]
[1741823580074,47.67657528,126.64,126.58,11.72008255]
[1741823580270,47.67657528,126.64,126.58,40.88008255]
[1741823580469,18.51657528,126.64,126.58,40.88008255]
[1741823580674,18.51657528,126.64,126.6,7.8997]
[1741823580976,2.2542,126.64,126.61,0.06046586]
[1741823581374,2.2542,126.64,126.61,7.95966586]
[1741823581977,2.2542,126.64,126.61,0.06046586]
[1741823582378,11.66457528,126.66,126.61,0.06046586]
[1741823582574,11.66457528,126.66,126.63,7.8979]
[1741823582779,11.66457528,126.66,126.62,11.66457528]
[1741823582979,2.1617,126.68,126.62,11.66457528]
[1741823582980,21.72157528,126.68,126.62,11.66457528]
[1741823583174,13.82627528,126.68,126.62,11.66457528]
[1741823583378,13.82627528,126.68,126.64,7.95245295]
[1741823583577,10.0573,126.68,126.64,7.95245295]
[1741823583883,21.72187528,126.68,126.64,7.95245295]
[1741823584078,7.896,126.67,126.64,0.05505295]
[1741823584476,13.82627528,126.68,126.64,0.05505295]
[1741823584672,21.72177528,126.68,126.64,7.95265295]
[1741823584877,21.72177528,126.68,126.64,0.05505295]
[1741823585073,13.82627528,126.68,126.64,0.05505295]
[1741823585278,7.8961,126.67,126.64,0.05505295]
[1741823586189,7.8967,126.66,126.64,0.05505295]
[1741823586486,13.82627528,126.68,126.64,0.05505295]
[1741823586686,7.8971,126.65,126.64,0.05505295]
[1741823588382,29.14,126.67,126.64,0.05505295]
[1741823588588,19.56147528,126.66,126.64,0.05505295]
[1741823589189,7.896,126.67,126.64,0.05505295]
[1741823589887,13.82627528,126.68,126.64,0.05505295]
[1741823589888,7.8967,126.66,126.64,0.05505295]
[1741823593089,19.56077528,126.67,126.64,0.05505295]
[1741823593291,7.8962,126.67,126.64,0.05505295]
[1741823593790,7.8965,126.66,126.64,0.05505295]
[1741823594195,13.82627528,126.68,126.64,7.95275295]
[1741823594396,7.8962,126.67,126.64,7.95275295]
[1741823594695,7.8962,126.67,126.64,0.05505295]
[1741823595897,13.82627528,126.68,126.66,7.8965]
[1741823596199,2.1617,126.68,126.64,11.71962823]
[1741823597600,2.1617,126.68,126.65,7.8967]
[1741823597899,2.1617,126.68,126.64,11.71962823]
[1741823598603,10.057,126.68,126.64,11.71962823]
[1741823599402,2.1617,126.68,126.65,7.8968]
[1741823599696,2.1617,126.68,126.64,11.71962823]
[1741823599891,10.0574,126.68,126.64,19.61702823]
[1741823600700,2.1617,126.68,126.64,19.61702823]
[1741823600895,2.1617,126.68,126.64,11.71962823]
[1741823601092,2.1617,126.68,126.65,7.8971]
[1741823601497,10.0574,126.68,126.65,7.8971]
[1741823602103,2.1617,126.68,126.65,7.8971]
[1741823602402,2.1617,126.68,126.66,7.8965]
[1741823602796,2.1617,126.68,126.64,11.71962823]
[1741823603505,10.0573,126.68,126.65,7.8968]
[1741823603898,2.1617,126.68,126.64,11.71962823]
[1741823605397,2.2299,126.69,126.64,11.71962823]
[1741823605798,7.8956,126.68,126.65,7.8967]
[1741823606202,7.8962,126.67,126.64,7.95255295]
[1741823606404,7.8962,126.67,126.64,19.61712823]
[1741823606706,2.2299,126.69,126.64,11.71962823]
[1741823607005,2.2946,126.7,126.65,29.14]
[1741823607200,2.2946,126.7,126.66,11.66457528]
[1741823607600,2.2946,126.7,126.67,0.05306076]
[1741823608001,10.189,126.7,126.67,7.94876076]
[1741823608499,41.08873904,126.69,126.66,5.40036012]
[1741823608704,41.08873904,126.69,126.66,11.66457528]
[1741823608904,41.08873904,126.68,126.66,11.66457528]
[1741823609210,7.83088388,126.67,126.66,4.45270001]
[1741823610107,0.05525465,126.68,126.66,4.45270001]
[1741823610609,0.05525465,126.68,126.67,7.8959]
[1741823612309,10.1771,126.73,126.69,7.8944]
[1741823612514,10.1771,126.73,126.69,19.55897528]
[1741823613211,10.1771,126.73,126.7,7.894]
[1741823613612,10.1771,126.73,126.7,7.94393513]
[1741823614508,10.1771,126.73,126.7,0.04993513]
[1741823616016,43.43973954,126.77,126.72,11.66457528]
[1741823616210,43.43973954,126.77,126.74,11.66457528]
[1741823616510,12.207,126.79,126.74,19.55577528]
[1741823616817,11.66457528,126.78,126.73,11.7168131]
[1741823617008,11.66457528,126.78,126.74,7.8915]
[1741823617208,11.66457528,126.78,126.73,11.7168131]
[1741823617404,12.2069,126.79,126.73,11.7168131]
[1741823617615,19.55397528,126.78,126.73,11.7168131]
[1741823618318,7.8899,126.77,126.73,11.7168131]
[1741823619118,19.55387528,126.78,126.73,11.7168131]
[1741823619314,19.55387528,126.78,126.73,19.6088131]
[1741823619515,11.66457528,126.78,126.73,11.7168131]
[1741823619711,7.8897,126.77,126.73,11.7168131]
[1741823624421,7.8903,126.76,126.73,11.7168131]
[1741823626323,11.66457528,126.75,126.73,0.05223782]
[1741823626520,11.66457528,126.75,126.7,11.66457528]
[1741823626716,2.3513,126.74,126.69,248.50457528]
[1741823627221,11.66457528,126.73,126.69,248.50457528]
[1741823627626,0.05223782,126.72,126.7,0.04989633]
[1741823628728,11.7168131,126.72,126.7,0.04989633]
[1741823628931,7.8934,126.71,126.7,0.04989633]
[1741823629329,11.7168131,126.72,126.67,11.66457528]
[1741823629528,11.66457528,126.7,126.65,48.66147528]
[1741823630429,7.8951,126.69,126.65,36.9969]
[1741823630627,0.05149285,126.69,126.66,0.05038009]
[1741823631422,7.94649285,126.69,126.66,0.05038009]
[1741823632123,0.05149285,126.69,126.66,0.05038009]
[1741823632723,11.71606813,126.69,126.66,0.05038009]
[1741823635031,19.61116813,126.69,126.66,0.05038009]
[1741823635625,11.71606813,126.69,126.66,0.05038009]
[1741823635830,7.8954,126.68,126.66,0.05038009]
[1741823637829,19.61116813,126.69,126.66,0.05038009]
[1741823638027,11.71606813,126.69,126.66,0.05038009]
[1741823638834,19.61096813,126.69,126.66,0.05038009]
[1741823640229,7.94639285,126.69,126.66,0.05038009]
[1741823641037,0.05149285,126.69,126.66,7.94658009]
[1741823641240,0.05149285,126.69,126.66,0.05038009]
[1741823641431,7.94629285,126.69,126.66,0.05038009]
[1741823641628,7.94629285,126.69,126.66,7.94688009]
[1741823642029,0.05149285,126.69,126.67,11.66457528]
[1741823642830,0.05149285,126.69,126.68,7.8953]
[1741823644130,0.05149285,126.69,126.67,19.56017528]
[1741823644535,0.05149285,126.69,126.67,11.66457528]
[1741823645137,0.05149285,126.69,126.68,7.8953]
[1741823645539,0.05149285,126.69,126.68,19.55987528]
[1741823646236,0.05149285,126.69,126.68,7.8953]
[1741823648138,0.05149285,126.69,126.68,19.55987528]
[1741823651941,0.05149285,126.69,126.68,7.8953]
[1741823652148,0.05149285,126.69,126.68,36.9953]
[1741823652346,0.05149285,126.69,126.68,48.65987528]
[1741823654753,0.05149285,126.69,126.68,29.1]
[1741823655551,0.05149285,126.69,126.68,40.76457528]
[1741823655755,0.05149285,126.69,126.68,48.65987528]
[1741823661954,9.285e-05,126.69,126.68,48.65987528]
[1741823663653,16.32207528,126.76,126.68,48.65987528]
[1741823663654,16.32207528,126.76,126.68,48.66457528]
[1741823663859,4.6575,126.76,126.73,7.8918]
[1741823664959,12.5985413,126.76,126.73,7.95005453]
[1741823665459,4.7081413,126.76,126.73,7.95005453]
[1741823665663,4.7081413,126.76,126.74,7.8915]
[1741823667162,0.0506413,126.76,126.73,0.05825453]
[1741823667364,0.0506413,126.76,126.75,7.8909]
[1741823667761,0.0506413,126.76,126.74,11.66457528]
[1741823668361,0.0506413,126.76,126.75,7.8909]
[1741823669266,0.0506413,126.76,126.74,19.55587528]
[1741823670967,0.0506413,126.76,126.74,11.66457528]
[1741823673363,0.0506413,126.76,126.75,7.8909]
[1741823673570,0.0506413,126.76,126.74,11.66457528]
[1741823673773,7.9413413,126.76,126.73,0.05825453]
[1741823674772,0.0506413,126.76,126.73,0.05825453]
[1741823675778,7.9411413,126.76,126.73,0.05825453]
[1741823676678,7.9411413,126.76,126.73,7.95035453]
[1741823677174,0.0506413,126.76,126.73,7.95035453]
[1741823678173,7.9410413,126.76,126.73,7.95035453]
[1741823679580,7.9410413,126.76,126.73,0.05825453]
[1741823680078,7.9411413,126.76,126.73,0.05825453]
[1741823680476,0.0506413,126.76,126.73,7.94995453]
[1741823681177,0.0506413,126.76,126.73,0.05825453]
[1741823681384,0.0506413,126.76,126.74,40.74457528]
[1741823681883,0.0506413,126.76,126.75,7.8909]
[1741823683281,0.0506413,126.76,126.74,48.63587528]
[1741823684684,0.0506413,126.76,126.74,19.55587528]
[1741823684875,0.0506413,126.76,126.75,7.8909]
[1741823689682,4.5833,126.8,126.79,7.8884]
[1741823692585,4.5833,126.8,126.78,11.7195781]
[1741823692781,4.5833,126.8,126.78,19.6083781]
[1741823693393,12.4713,126.8,126.78,0.05500282]
[1741823695188,7.8884,126.79,126.77,29.08]
[1741823695388,7.8884,126.79,126.76,19.55487528]
[1741823696392,7.94340282,126.79,126.76,19.60780348]
[1741823697395,0.05500282,126.79,126.76,19.60780348]
[1741823697987,0.05500282,126.79,126.77,7.8896]
[1741823700294,7.8891,126.78,126.76,0.0529282]
[1741823700591,11.7195781,126.79,126.76,0.0529282]
[1741823700792,14.0053781,126.79,126.76,0.0529282]
[1741823701096,7.8895,126.78,126.76,0.0529282]
[1741823703697,21.8941781,126.79,126.76,0.0529282]
[1741823704205,0.05500282,126.79,126.76,0.0529282]
[1741823704694,0.05500282,126.79,126.76,7.9428282]
[1741823706000,0.05500282,126.79,126.77,7.8895]
[1741823706202,0.05500282,126.79,126.76,0.0529282]
[1741823706500,0.05500282,126.79,126.76,7.9429282]
[1741823707503,7.94350282,126.79,126.76,0.0529282]
[1741823707703,0.05500282,126.79,126.76,0.0529282]
[1741823708201,7.8897,126.77,126.76,0.0529282]
[1741823709199,7.8893,126.78,126.76,0.0529282]
[1741823710304,7.94390282,126.79,126.76,0.0529282]
[1741823710904,0.05500282,126.79,126.77,19.55377528]
[1741823711103,0.05500282,126.79,126.77,11.66457528]
[1741823711705,0.05500282,126.79,126.78,7.889]
[1741823711905,0.05500282,126.79,126.77,11.66457528]
[1741823712808,0.05500282,126.79,126.77,19.55417528]
[1741823713505,7.94340282,126.79,126.77,19.55417528]
[1741823714209,0.05500282,126.79,126.77,19.55417528]
[1741823715909,2.82e-06,126.79,126.78,7.889]
[1741823716606,2.82e-06,126.79,126.77,7.8891]
[1741823716909,2.82e-06,126.79,126.76,0.0529282]
[1741823717612,2.82e-06,126.79,126.76,7.9428282]
[1741823720313,7.88850282,126.79,126.76,0.0529282]
[1741823721907,7.88850282,126.79,126.76,7.9430282]
[1741823724613,7.88850282,126.79,126.76,0.0529282]
[1741823725413,7.88850282,126.79,126.76,7.9431282]
[1741823726213,2.82e-06,126.79,126.76,0.0529282]
[1741823726415,11.66457528,126.77,126.71,244.5531]
[1741823726712,11.66457528,126.75,126.71,7.8931]
[1741823727116,19.55587528,126.75,126.71,7.8931]
[1741823727517,0.05293102,126.74,126.72,0.05263784]
[1741823728011,0.05293102,126.74,126.73,19.55677528]
[1741823728214,0.05293102,126.74,126.72,0.05263784]
[1741823731222,0.05293102,126.74,126.72,7.94503784]
[1741823731714,0.05293102,126.74,126.72,0.05263784]
[1741823732409,11.66457528,126.73,126.72,0.05263784]
[1741823732615,19.55677528,126.73,126.72,0.05263784]
[1741823733722,7.8934,126.71,126.68,11.66457528]
[1741823734020,7.8934,126.71,126.67,142.27543884]
[1741823734021,7.8934,126.71,126.67,153.94001412]
[1741823734217,11.66457528,126.71,126.67,11.66457528]
[1741823734814,0.05058796,126.7,126.68,0.05210194]
[1741823735020,0.05058796,126.7,126.69,7.8946]
[1741823736323,0.05058796,126.7,126.68,0.05210194]
[1741823736518,0.05058796,126.7,126.68,7.94710194]
[1741823737218,7.94508796,126.7,126.68,0.05210194]
[1741823737523,0.05058796,126.7,126.68,0.05210194]
[1741823738114,7.8947,126.69,126.68,0.05210194]
[1741823738620,7.94498796,126.7,126.68,0.05210194]
[1741823739320,0.05058796,126.7,126.68,0.05210194]
[1741823740013,0.05058796,126.7,126.68,7.94720194]
[1741823740517,0.05058796,126.7,126.68,0.05210194]
[1741823741121,0.05058796,126.7,126.68,7.94700194]
[1741823741916,0.05058796,126.7,126.69,7.8947]
[1741823742120,0.05058796,126.7,126.68,0.05210194]
[1741823742320,0.05058796,126.7,126.68,7.94710194]
[1741823742718,0.05058796,126.7,126.68,0.05210194]
[1741823745025,0.05058796,126.7,126.68,7.94700194]
[1741823746419,0.05058796,126.7,126.68,0.05210194]
[1741823746625,7.94468796,126.7,126.68,0.05210194]
[1741823747018,0.05058796,126.7,126.68,0.05210194]
[1741823747223,7.8947,126.69,126.68,0.05210194]
[1741823747422,11.71516324,126.7,126.68,0.05210194]
[1741823747624,19.60946324,126.7,126.68,0.05210194]
[1741823748721,0.05058796,126.7,126.68,7.94700194]
[1741823749124,0.05058796,126.7,126.68,0.05210194]
[1741823749324,0.05058796,126.7,126.59,106.73429121]
[1741823749325,7.8967,126.66,126.62,19.56337528]
[1741823749527,2.2358,126.71,126.6,2.1733]
[1741823749528,2.2358,126.71,126.64,11.66457528]
[1741823749718,2.2358,126.71,126.67,7.8956]
[1741823750126,2.2358,126.71,126.66,11.66457528]
[1741823750327,10.1294,126.71,126.67,7.8957]
[1741823750521,0.05032805,126.7,126.67,0.05773028]
[1741823751831,0.05032805,126.7,126.67,7.95353028]
[1741823753544,0.05032805,126.7,126.68,7.8952]
[1741823754342,0.05032805,126.7,126.67,7.95343028]
[1741823754740,0.05032805,126.7,126.69,7.8947]
[1741823755134,0.05032805,126.7,126.67,0.05773028]
[1741823755341,0.05032805,126.7,126.68,7.8949]
[1741823760351,0.05032805,126.7,126.67,0.05773028]
[1741823760552,0.05032805,126.7,126.67,7.95333028]
[1741823763144,0.05032805,126.7,126.67,0.05773028]
[1741823763449,0.05032805,126.7,126.68,7.8952]
[1741823765149,0.05032805,126.7,126.67,7.95333028]
[1741823765651,0.05032805,126.7,126.67,0.05773028]
[1741823765952,11.66457528,126.68,126.67,0.05773028]
[1741823766550,19.55987528,126.68,126.67,0.05773028]
[1741823766750,48.63987528,126.68,126.67,0.05773028]
[1741823767255,7.8963,126.67,126.63,7.898]
[1741823767555,40.74457528,126.68,126.62,11.66457528]
[1741823767757,7.897,126.66,126.62,11.66457528]
[1741823767955,40.74457528,126.68,126.62,11.66457528]
[1741823768354,7.94673283,126.66,126.64,0.05126718]
[1741823769058,0.05013283,126.66,126.64,0.05126718]
[1741823769655,7.94673283,126.66,126.64,0.05126718]
[1741823771546,19.61130811,126.66,126.64,0.05126718]
[1741823773353,11.71470811,126.66,126.55,236.86]
[1741823773554,11.66457528,126.64,126.59,117.02500151]
[1741823773859,11.66457528,126.64,126.59,11.66457528]
[1741823774460,0.0537812,126.63,126.6,7.95496249]
[1741823775262,11.71835648,126.63,126.6,7.95496249]
[1741823775462,19.61695648,126.63,126.6,7.95496249]
[1741823776964,19.61695648,126.63,126.6,0.05496249]
[1741823779164,7.8991,126.62,126.6,0.05496249]
[1741823779953,19.56367528,126.62,126.6,0.05496249]
[1741823780157,19.56417528,126.61,126.6,0.05496249]
[1741823781564,7.9004,126.6,126.56,11.66457528]
[1741823781766,19.56497528,126.6,126.56,7.9023]
[1741823782768,0.05803868,126.59,126.57,0.054854]
[1741823782965,0.05803868,126.59,126.57,7.956654]
[1741823783170,0.05803868,126.59,126.57,0.054854]
[1741823783664,0.05803868,126.59,126.58,7.9015]
[1741823784169,11.72261396,126.59,126.57,0.054854]
[1741823785758,0.05803868,126.59,126.57,7.956554]
[1741823786560,0.05803868,126.59,126.57,0.054854]
[1741823789270,0.05803868,126.59,126.57,7.956854]
[1741823789471,0.05803868,126.59,126.57,11.71942928]
[1741823789665,13.91677528,126.64,126.58,11.66457528]
[1741823789866,13.91677528,126.64,126.6,7.8998]
[1741823790068,21.81467528,126.64,126.6,7.8998]
[1741823790775,0.05052349,126.63,126.61,0.05993085]
[1741823790973,7.94892349,126.63,126.61,0.05993085]
[1741823791370,7.899,126.62,126.61,0.05993085]
[1741823792275,11.71509877,126.63,126.61,0.05993085]
[1741823793377,19.61389877,126.63,126.61,0.05993085]
[1741823797680,19.56357528,126.62,126.61,0.05993085]
[1741823798679,40.74457528,126.62,126.55,11.66457528]
[1741823798877,11.66457528,126.59,126.55,40.74457528]
[1741823799078,11.66457528,126.59,126.55,48.64757528]
[1741823799780,0.0602639,126.58,126.56,0.0602542]
[1741823802875,7.9021,126.57,126.56,0.0602542]
[1741823803076,11.66457528,126.57,126.52,11.66457528]
[1741823803481,7.9032,126.56,126.52,19.56957528]
[1741823804281,0.05724438,126.55,126.53,0.05464776]
[1741823804877,0.05724438,126.55,126.54,7.904]
[1741823805176,0.05724438,126.55,126.53,0.05464776]
[1741823805376,0.05724438,126.55,126.53,7.95904776]
[1741823805581,0.05724438,126.55,126.53,0.05464776]
[1741823807482,0.05724438,126.55,126.54,7.904]
[1741823809185,0.05724438,126.55,126.54,19.56857528]
[1741823813487,0.05724438,126.55,126.53,29.13464776]
[1741823813684,0.05724438,126.55,126.53,37.03904776]
[1741823813884,0.05724438,126.55,126.53,7.95904776]
[1741823814480,0.05724438,126.55,126.53,0.05464776]
[1741823815691,0.05724438,126.55,126.54,11.66457528]
[1741823816796,0.05724438,126.55,126.54,19.56857528]
[1741823821001,0.05724438,126.55,126.53,0.05464776]
[1741823821302,0.05724438,126.55,126.54,7.904]
[1741823822596,0.05724438,126.55,126.53,0.05464776]
[1741823823100,0.05724438,126.55,126.54,7.904]
[1741823830307,0.05724438,126.55,126.54,19.56857528]
[1741823837711,0.05724438,126.55,126.53,7.95914776]
[1741823837911,0.05724438,126.55,126.53,0.05464776]
[1741823839613,0.05724438,126.55,126.53,7.95914776]
[1741823841112,7.96074438,126.55,126.53,0.05464776]
[1741823841717,7.904,126.54,126.53,0.05464776]
[1741823842212,19.56857528,126.54,126.53,0.05464776]
[1741823842416,19.56857528,126.54,126.5,7.9063]
[1741823843111,19.56857528,126.54,126.48,29.08]
[1741823843112,11.66457528,126.54,126.48,40.74457528]
[1741823843613,0.05919454,126.52,126.51,7.9055]
[1741823844711,0.05919454,126.52,126.51,19.57007528]
[1741823845617,0.05919454,126.52,126.51,48.65007528]
[1741823847713,0.05919454,126.52,126.5,0.05791258]
[1741823848020,0.05919454,126.52,126.5,7.96411258]
[1741823848513,0.05919454,126.52,126.51,7.9059]
[1741823848816,0.05919454,126.52,126.5,0.05791258]
[1741823849016,0.05919454,126.52,126.5,7.96411258]
[1741823849817,0.05919454,126.52,126.51,7.9059]
[1741823850318,0.05919454,126.52,126.5,0.05791258]
[1741823851319,0.05919454,126.52,126.51,11.66457528]
[1741823851614,0.05919454,126.52,126.51,7.9059]
[1741823852219,9.454e-05,126.52,126.51,19.57047528]
[1741823855219,9.454e-05,126.52,126.51,7.9059]
[1741823855416,9.454e-05,126.52,126.5,0.05791258]
[1741823855912,11.66466982,126.52,126.5,0.05791258]
[1741823856215,19.56996982,126.52,126.5,0.05791258]
[1741823856719,9.454e-05,126.52,126.5,11.72248786]
[1741823856919,9.454e-05,126.52,126.51,29.08]
[1741823858017,9.454e-05,126.52,126.51,36.9859]
[1741823859022,9.454e-05,126.52,126.51,48.65047528]